bitfinex-derivatives/quotes_ETHF0:USTF0_20250807
["timestamp","ask_amount","ask_price","bid_price","bid_amount"]
[1754559674796,3.2078,3723.0,3722.9,1.2385]
[1754559675196,44.73883869,3723.0,3722.9,1.2385]
[1754559675697,44.73883869,3723.0,3722.9,1.7286]
[1754559677003,44.73883869,3723.0,3722.9,1.2804]
[1754559677200,44.73883869,3723.0,3722.9,0.3045]
[1754559679099,46.08160869,3723.0,3722.1,0.6754]
[1754559679301,46.08160869,3723.0,3721.9,1.0532]
[1754559679302,3.2078,3722.4,3722.3,0.3045]
[1754559679499,3.2078,3722.4,3722.3,0.605]
[1754559680201,3.2078,3722.4,3722.3,1.7286]
[1754559685803,2.7452,3722.4,3722.3,1.7286]
[1754559686700,2.4368,3722.4,3722.3,1.7286]
[1754559689710,3.345,3722.4,3722.3,1.7286]
[1754559690607,3.628,3722.4,3722.3,1.7286]
[1754559690811,3.345,3722.4,3722.3,1.7286]
[1754559693401,2.4368,3722.4,3722.3,1.7286]
[1754559695013,2.8654,3722.4,3722.3,1.7286]
[1754559695607,3.0694,3722.4,3722.3,1.7286]
[1754559695916,3.3675,3722.4,3722.3,1.7286]
[1754559696406,3.6505,3722.4,3722.3,1.7286]
[1754559696913,0.4286,3722.3,3721.9,0.2899]
[1754559697205,0.4286,3722.3,3721.5,0.4497]
[1754559697206,0.2981,3721.7,3721.6,0.6847]
[1754559697514,0.9307,3721.7,3721.6,1.2634]
[1754559697716,1.2137,3721.7,3721.6,1.7131]
[1754559698912,1.46799,3721.7,3721.6,1.2634]
[1754559699213,1.75099,3721.7,3721.6,1.7131]
[1754559699514,1.2137,3721.7,3721.6,1.7131]
[1754559702711,42.0137,3721.7,3721.6,1.7131]
[1754559704719,41.7307,3721.7,3721.6,1.7131]
[1754559706215,40.8,3721.7,3721.6,1.7131]
[1754559706422,3.2078,3722.0,3721.9,0.6847]
[1754559706719,3.2078,3722.0,3721.9,2.25036]
[1754559706920,44.0078,3722.0,3721.9,2.25036]
[1754559707522,3.2078,3722.0,3721.9,2.25036]
[1754559709419,40.8,3722.3,3722.2,2.25032]
[1754559709721,0.4286,3722.3,3722.2,2.25032]
[1754559709918,0.6326,3722.3,3722.2,2.25032]
[1754559710717,3.2078,3722.4,3722.2,2.25032]
[1754559711118,0.4286,3723.0,3722.7,1.22185]
[1754559711323,0.9307,3722.9,3722.8,1.7131]
[1754559712413,3.7099,3723.3,3723.2,0.6847]
[1754559712618,4.1385,3723.3,3723.2,1.7131]
[1754559712818,44.9385,3723.3,3723.2,1.7131]
[1754559713118,45.2215,3723.3,3723.2,1.7131]
[1754559713324,45.2215,3723.3,3723.2,1.2634]
[1754559714418,45.2215,3723.3,3723.2,1.7131]
[1754559715424,44.0078,3723.3,3723.2,1.7131]
[1754559715627,44.4364,3723.3,3723.2,1.7131]
[1754559716219,44.0078,3723.3,3723.2,1.7131]
[1754559716525,3.2078,3723.3,3723.2,1.7131]
[1754559717422,3.8404,3723.3,3723.2,1.7131]
[1754559717727,3.2078,3723.3,3723.2,1.7131]
[1754559717923,0.4286,3723.7,3723.6,2.25012]
[1754559718127,3.2078,3723.8,3723.7,1.7131]
[1754559718322,0.9307,3724.1,3724.0,0.6847]
[1754559718627,0.9307,3724.1,3724.0,1.7131]
[1754559719322,44.0078,3724.2,3724.0,2.25007]
[1754559719529,0.4501,3724.5,3724.4,0.689]
[1754559719723,0.4501,3724.5,3724.4,2.26291]
[1754559719928,0.6416,3724.5,3724.4,2.26291]
[1754559720145,0.1915,3724.5,3724.4,2.26291]
[1754559720334,3.2078,3724.7,3724.6,2.26288]
[1754559720529,3.2078,3725.1,3725.0,1.2631]
[1754559720724,3.2078,3725.1,3725.0,1.726]
[1754559724436,3.6579,3725.1,3725.0,1.726]
[1754559726043,3.2078,3725.1,3725.0,1.726]
[1754559726545,3.6952,3725.1,3725.0,1.2631]
[1754559726739,4.447,3725.1,3725.0,1.2631]
[1754559727246,1.2392,3724.9,3724.8,0.9587]
[1754559727445,1.2392,3724.9,3724.8,0.5741]
[1754559727645,0.4874,3724.7,3724.5,0.199]
[1754559727845,4.98388,3724.6,3724.5,0.3846]
[1754559728249,4.98388,3724.6,3724.5,1.726]
[1754559728250,4.447,3724.6,3724.5,1.726]
[1754559728739,4.1453,3724.6,3724.5,1.726]
[1754559729052,4.447,3724.6,3724.5,1.726]
[1754559730938,4.1453,3724.6,3724.5,1.726]
[1754559732440,4.447,3724.6,3724.5,1.726]
[1754559734546,4.1453,3724.6,3724.5,1.726]
[1754559737246,3.2078,3724.6,3724.5,1.726]
[1754559739450,3.8494,3725.1,3725.0,2.26282]
[1754559739651,4.1453,3725.1,3725.0,2.26282]
[1754559739844,4.1453,3725.1,3725.0,1.726]
[1754559740348,4.447,3725.1,3725.0,1.726]
[1754559744249,1.2392,3725.0,3724.9,0.53683]
[1754559744848,1.2392,3725.0,3724.9,0.92143]
[1754559745048,1.2392,3725.0,3724.9,1.49553]
[1754559745651,1.2392,3725.0,3724.9,1.95843]
[1754559745953,4.447,3725.0,3724.9,1.4216]
[1754559746357,4.447,3725.0,3724.9,1.726]
[1754559747548,5.17330288,3725.0,3724.9,1.726]
[1754559748249,3.93410288,3725.0,3724.9,1.726]
[1754559749258,0.72630288,3725.0,3724.9,1.726]
[1754559749454,0.4501,3725.3,3725.2,1.22529]
[1754559749754,1.17947425,3725.3,3725.2,2.24369]
[1754559750249,1.38527425,3725.3,3725.2,2.24369]
[1754559750460,1.68777425,3725.3,3725.2,2.24369]
[1754559754756,0.72937425,3725.3,3725.2,2.24369]
[1754559755154,1.35787425,3725.3,3725.2,2.24369]
[1754559755461,1.66037425,3725.3,3725.2,2.24369]
[1754559755956,0.72937425,3725.3,3725.2,2.24369]
[1754559757357,3.6305,3725.6,3725.5,0.53675]
[1754559757560,4.86762872,3725.6,3725.5,2.24365]
[1754559757758,3.93662872,3725.6,3725.5,2.24365]
[1754559757958,4.86762872,3725.6,3725.5,2.24365]
[1754559758166,3.93662872,3725.6,3725.5,2.24365]
[1754559758968,4.86762872,3725.6,3725.5,2.24365]
[1754559759664,0.72882872,3725.6,3725.5,2.24365]
[1754559759862,0.72882872,3725.8,3725.7,1.67722]
[1754559760056,0.72882872,3725.8,3725.7,2.24362]
[1754559760258,0.72882872,3726.1,3726.0,2.24358]
[1754559761360,3.2078,3726.2,3726.0,2.24358]
[1754559761663,1.65982872,3726.5,3726.4,1.7069]
[1754559762054,1.95002872,3726.5,3726.2,0.53665]
[1754559762260,0.53665,3726.3,3726.1,0.53665]
[1754559762463,1.2212,3726.2,3726.1,0.53665]
[1754559762760,0.5083,3726.0,3725.9,1.10308]
[1754559762966,1.2212,3726.0,3725.9,1.10308]
[1754559763261,4.429,3726.2,3726.1,1.79156]
[1754559763665,4.429,3726.2,3726.1,2.24356]
[1754559763964,4.429,3726.2,3726.1,1.48756]
[1754559764362,4.429,3726.2,3726.1,0.53666]
[1754559766663,1.2212,3726.1,3726.0,0.53667]
[1754559766868,1.75788,3726.0,3725.9,1.10308]
[1754559767369,1.2212,3726.0,3725.9,1.48758]
[1754559768069,1.2212,3726.0,3725.9,2.24358]
[1754559770370,1.2212,3726.0,3725.9,1.7069]
[1754559770668,0.5083,3725.8,3725.7,0.3845]
[1754559770864,4.429,3725.8,3725.7,0.3845]
[1754559771061,3.2078,3725.8,3725.4,0.53676]
[1754559771266,0.2058,3725.0,3724.9,1.67734]
[1754559771463,4.0063,3725.3,3725.2,1.22529]
[1754559771663,3.7161,3725.3,3725.2,1.96109]
[1754559771869,3.7161,3725.3,3725.2,2.24369]
[1754559772068,4.1388,3725.3,3725.2,2.24369]
[1754559772271,3.2078,3725.3,3725.2,2.24369]
[1754559773769,4.1388,3725.3,3725.2,2.24369]
[1754559773968,4.429,3725.3,3725.2,2.24369]
[1754559774176,4.67559,3725.3,3725.1,0.5368]
[1754559774472,4.96579,3725.3,3725.2,1.7069]
[1754559775468,3.7161,3725.3,3725.2,1.7069]
[1754559775673,4.429,3725.3,3725.2,1.7069]
[1754559777068,4.1388,3725.3,3725.2,1.7069]
[1754559778476,4.429,3725.3,3725.2,1.7069]
[1754559779272,4.1388,3725.3,3725.2,1.7069]
[1754559779477,3.2078,3725.3,3725.2,1.7069]
[1754559780974,3.2078,3725.7,3725.6,1.22173]
[1754559781174,3.2078,3725.7,3725.6,2.25143]
[1754559781880,41.2265,3726.0,3725.9,2.25139]
[1754559782069,40.8,3726.0,3725.9,2.25139]
[1754559782374,3.6343,3726.2,3726.1,2.25136]
[1754559782679,44.927,3726.2,3726.1,2.25136]
[1754559782873,45.65513246,3726.2,3726.1,2.25136]
[1754559783171,3.93593246,3726.2,3726.1,2.25136]
[1754559783378,3.2078,3726.2,3726.1,2.25136]
[1754559783575,41.52813246,3726.5,3726.4,2.25132]
[1754559783776,41.95463246,3726.5,3726.4,2.25132]
[1754559784175,41.52813246,3726.5,3726.4,2.25132]
[1754559784376,41.95463246,3726.5,3726.4,2.25132]
[1754559784577,0.72813246,3726.5,3726.4,2.25132]
[1754559784776,3.2078,3726.6,3726.4,1.22162]
[1754559784979,3.2078,3726.6,3726.5,1.7147]
[1754559785373,3.93593246,3726.6,3726.5,1.7147]
[1754559786080,4.85513246,3726.6,3726.5,1.7147]
[1754559786580,5.14053246,3726.6,3726.5,1.7147]
[1754559786778,0.9096,3726.5,3726.4,0.53661]
[1754559786982,1.2046,3726.5,3726.4,1.12611]
[1754559789875,1.2046,3726.5,3726.4,0.5895]
[1754559790281,0.4927,3726.3,3726.2,1.51974]
[1754559790480,1.2046,3726.3,3726.2,1.51974]
[1754559790984,1.2046,3726.3,3726.2,1.95994]
[1754559791373,1.2046,3726.3,3726.2,2.25134]
[1754559792082,1.2046,3726.3,3726.2,1.7147]
[1754559793283,0.9192,3726.3,3726.2,1.7147]
[1754559794382,1.2046,3726.3,3726.2,1.7147]
[1754559795181,0.9192,3726.3,3726.2,1.7147]
[1754559795781,0.53661,3726.5,3726.4,0.685]
[1754559795984,0.9192,3726.5,3726.4,0.685]
[1754559796281,0.4265,3726.5,3726.4,0.685]
[1754559796471,0.4265,3726.5,3726.4,1.7147]
[1754559796673,0.9192,3726.5,3726.4,1.7147]
[1754559797084,1.2046,3726.5,3726.4,1.7147]
[1754559797385,1.2046,3726.3,3726.2,1.66184]
[1754559797586,0.9192,3726.3,3726.2,1.66184]
[1754559797884,0.9192,3726.3,3726.2,2.25134]
[1754559800080,0.6242,3726.3,3726.2,2.25134]
[1754559800881,0.9192,3726.3,3726.2,2.25134]
[1754559801989,1.2046,3726.3,3726.2,2.25134]
[1754559804192,0.9192,3726.3,3726.2,2.25134]
[1754559807094,1.2046,3726.3,3726.2,2.25134]
[1754559807701,0.1977,3725.6,3725.5,0.9709]
[1754559807899,0.9192,3725.6,3725.5,1.2745]
[1754559808402,0.9192,3725.6,3725.5,1.7147]
[1754559808802,0.9192,3725.6,3725.5,2.25145]
[1754559809301,3.6782,3726.0,3725.9,2.26459]
[1754559809697,4.106,3726.0,3725.9,2.26459]
[1754559811298,1.196,3725.9,3725.8,0.5367]
[1754559811499,1.7327,3725.9,3725.7,0.53671]
[1754559811801,1.7327,3725.9,3725.7,1.13231]
[1754559811802,1.196,3725.8,3725.7,1.13231]
[1754559811998,1.196,3725.8,3725.7,1.52921]
[1754559812299,1.196,3725.8,3725.7,1.81511]
[1754559812505,1.196,3725.8,3725.7,2.26461]
[1754559812806,0.8982,3725.8,3725.7,2.26461]
[1754559812999,3.2078,3726.0,3725.9,2.26459]
[1754559813204,4.106,3726.0,3725.9,2.26459]
[1754559814606,4.106,3726.0,3725.9,0.53669]
[1754559814801,3.2078,3726.0,3725.9,2.26459]
[1754559815002,0.1882,3726.2,3726.1,0.3969]
[1754559815201,0.1882,3726.2,3726.1,1.7279]
[1754559815708,0.616,3726.2,3726.1,1.7279]
[1754559816207,0.72773934,3726.3,3726.2,1.66895]
[1754559816410,0.72773934,3726.3,3726.2,1.21945]
[1754559816805,0.72773934,3726.3,3726.2,1.66895]
[1754559817005,0.72773934,3726.3,3726.2,2.26455]
[1754559817206,3.93553934,3726.4,3726.2,2.26455]
[1754559817408,3.93553934,3726.4,3726.3,1.7279]
[1754559817610,3.2078,3726.4,3726.3,1.7279]
[1754559820413,4.106,3726.4,3726.3,1.7279]
[1754559820612,4.106,3726.4,3726.3,0.799]
[1754559820818,4.4038,3726.4,3726.3,0.799]
[1754559821315,4.4038,3726.4,3726.3,0.9925]
[1754559821814,4.4038,3726.4,3726.3,1.7279]
[1754559822518,3.2078,3726.4,3726.3,1.7279]
[1754559824315,1.0,3727.0,3726.9,0.7368]
[1754559824514,1.0,3727.0,3726.9,1.7279]
[1754559825518,3.2078,3728.9,3726.9,3.51028656]
[1754559825722,0.4278,3728.4,3728.2,0.53636]
[1754559825922,1.0914,3728.1,3727.3,1.34123]
[1754559826123,0.9681,3728.0,3727.9,0.5364]
[1754559826314,1.6937,3728.0,3727.9,0.5364]
[1754559826517,1.0256125,3728.3,3728.2,0.53636]
[1754559826718,1.0256125,3728.6,3728.5,0.53632]
[1754559827012,2.4215125,3728.6,3728.5,0.53632]
[1754559827216,1.6937,3728.6,3728.5,0.53632]
[1754559828818,1.6937,3728.6,3728.4,0.53632]
[1754559829026,1.0301,3728.5,3728.4,0.53632]
[1754559829226,1.6937,3728.5,3728.4,0.53632]
[1754559830120,1.6937,3728.5,3727.9,3.2078]
[1754559830324,1.6937,3727.9,3727.8,0.53641]
[1754559830820,3.74412,3728.5,3728.0,0.53638]
[1754559831124,0.3045,3728.6,3727.7,3.2078]
[1754559831125,0.9205,3728.4,3727.7,3.2078]
[1754559831326,0.9614,3728.3,3727.7,3.2078]
[1754559831519,0.7905,3728.2,3728.1,0.53636]
[1754559831723,1.2659,3728.2,3728.1,0.53636]
[1754559832122,1.0914,3728.0,3727.9,0.53639]
[1754559832329,0.53634,3728.4,3727.7,3.2078]
[1754559832330,1.6937,3727.9,3727.8,0.53641]
[1754559832630,1.6937,3727.4,3727.3,3.74429]
[1754559833627,0.6023,3728.0,3727.9,0.5364]
[1754559833830,1.6937,3728.0,3727.9,0.5364]
[1754559834022,0.4704,3727.8,3727.7,0.53643]
[1754559834224,1.6937,3727.8,3727.7,0.53643]
[1754559834418,0.491,3727.4,3727.3,0.53649]
[1754559834622,1.6937,3727.4,3727.3,0.53649]
[1754559835028,0.2978,3727.4,3727.3,0.53649]
[1754559835625,3.8714,3728.1,3728.0,0.53639]
[1754559836032,4.40779,3728.1,3727.9,0.53639]
[1754559836227,2.2301,3728.0,3727.8,0.53641]
[1754559836429,2.2301,3728.0,3727.3,0.53649]
[1754559836430,0.6636,3727.8,3727.7,0.53642]
[1754559836732,1.6937,3727.8,3727.7,0.53642]
[1754559837929,1.6937,3727.8,3727.6,0.53644]
[1754559838120,0.6636,3727.2,3727.1,0.53652]
[1754559838325,1.6937,3727.2,3727.1,0.53652]
[1754559841322,0.7905,3727.2,3727.1,0.53652]
[1754559841527,0.5959,3727.2,3727.1,0.53652]
[1754559842029,0.7824,3727.2,3727.1,0.53652]
[1754559842529,0.2978,3727.2,3727.1,0.53652]
[1754559843124,40.8,3727.6,3727.4,0.53648]
[1754559843325,0.2945,3727.5,3727.4,0.53648]
[1754559843523,0.7791,3727.5,3727.4,0.53648]
[1754559843833,1.7269,3727.5,3727.4,0.53648]
[1754559845232,1.4288,3727.4,3727.3,0.53648]
[1754559845432,1.7269,3727.4,3727.3,0.53648]
[1754559853041,1.4288,3727.3,3726.9,3.2078]
[1754559853239,0.6731,3727.1,3727.0,0.53653]
[1754559853540,1.7269,3727.1,3727.0,0.53653]
[1754559855540,1.2657,3727.1,3727.0,0.53653]
[1754559856038,4.03877,3727.5,3727.4,0.53648]
[1754559856241,5.47117,3727.5,3727.4,0.53648]
[1754559857634,4.9347,3727.5,3727.4,0.53648]
[1754559858440,1.7269,3727.5,3727.4,0.53648]
[1754559859237,0.2945,3727.5,3727.4,0.53648]
[1754559859645,0.5926,3727.5,3727.4,0.53648]
[1754559859836,1.0666,3727.5,3727.4,0.53648]
[1754559860035,1.2657,3727.5,3727.4,0.53648]
[1754559860241,0.5926,3727.5,3727.4,0.53648]
[1754559860641,1.2657,3727.5,3727.4,0.53648]
[1754559860844,1.7269,3727.5,3727.4,0.53648]
[1754559865640,0.2945,3727.5,3727.4,0.53648]
[1754559865945,0.5926,3727.5,3727.4,0.53648]
[1754559866844,0.7791,3727.5,3727.4,0.53648]
[1754559867347,1.7269,3727.5,3727.4,0.53648]
[1754559867945,0.9782,3727.5,3727.4,0.53648]
[1754559868344,1.7269,3727.5,3727.4,0.53648]
[1754559870839,1.2657,3727.5,3727.4,0.53648]
[1754559871248,0.2945,3727.5,3727.4,0.53648]
[1754559871449,2.01350363,3727.8,3727.7,0.53643]
[1754559871742,0.3046,3727.8,3727.7,0.53643]
[1754559871943,0.5945,3727.8,3727.7,0.53643]
[1754559872151,0.3046,3727.8,3727.7,0.53643]
[1754559872346,3.5124,3728.0,3727.9,0.53641]
[1754559872643,0.5945,3728.0,3727.9,3.74421]
[1754559872852,0.3046,3728.0,3727.9,3.74421]
[1754559873348,0.5945,3728.0,3727.9,3.74421]
[1754559873549,0.72830363,3728.7,3728.3,1.34085]
[1754559873748,1.2852,3728.4,3728.3,0.53635]
[1754559873950,1.717,3728.4,3728.3,0.53635]
[1754559875547,0.7898,3728.4,3728.3,0.53635]
[1754559875753,1.717,3728.4,3728.3,0.53635]
[1754559885860,0.3046,3728.7,3728.6,0.5363]
[1754559886058,1.717,3728.7,3728.6,0.5363]
[1754559888559,1.227,3728.6,3728.5,0.53632]
[1754559888858,2.2533,3728.6,3728.5,0.53632]
[1754559889359,1.717,3728.6,3728.5,0.53632]
[1754559891357,1.22702,3728.5,3728.4,0.53632]
[1754559891558,1.65886,3728.3,3728.2,0.53635]
[1754559891859,1.717,3728.2,3728.1,0.53637]
[1754559892662,0.3046,3728.2,3728.1,0.53637]
[1754559892959,0.5945,3728.5,3728.4,0.53633]
[1754559893151,4.22392671,3728.8,3728.6,0.5363]
[1754559893358,0.3046,3728.7,3728.6,0.5363]
[1754559893558,0.5945,3728.7,3728.6,0.5363]
[1754559894363,0.3046,3728.7,3728.6,0.5363]
[1754559894967,1.717,3728.7,3728.6,0.5363]
[1754559895466,0.3046,3728.7,3728.6,0.5363]
[1754559895958,41.44950261,3729.0,3728.9,0.53626]
[1754559896162,41.88130261,3729.0,3728.9,0.53626]
[1754559896464,1.08633765,3729.0,3728.9,0.53626]
[1754559896662,0.85500261,3729.0,3728.9,0.53626]
[1754559896862,2.06693765,3729.0,3728.9,0.53626]
[1754559897160,1.77200261,3729.0,3728.9,0.53626]
[1754559897364,2.49873765,3729.0,3728.9,0.53626]
[1754559898665,2.06693765,3729.0,3728.9,0.53626]
[1754559899356,2.60318765,3729.0,3728.9,0.53626]
[1754559899755,3.05758765,3729.0,3728.9,0.53626]
[1754559900661,2.52133765,3729.0,3728.9,0.53626]
[1754559901560,2.26286,3728.9,3728.8,0.53627]
[1754559901761,2.45333504,3728.9,3728.8,0.53627]
[1754559902769,0.72673504,3728.9,3728.8,0.53627]
[1754559903165,1.01933504,3728.9,3728.8,0.53627]
[1754559903356,2.45333504,3728.9,3728.8,0.53627]
[1754559904165,0.6813,3728.7,3728.6,0.53629]
[1754559904465,0.6813,3728.7,3728.4,3.2078]
[1754559904466,1.7266,3728.6,3728.5,0.53632]
[1754559904656,2.45333504,3728.6,3728.5,0.53632]
[1754559906765,1.0453,3728.5,3728.0,3.2078]
[1754559907065,1.7266,3728.1,3728.0,3.74419]
[1754559907763,0.2926,3728.1,3728.0,3.74419]
[1754559907969,0.5909,3728.1,3728.0,3.74419]
[1754559908263,1.7266,3728.1,3728.0,3.74419]
[1754559908467,1.7266,3728.1,3728.0,0.53639]
[1754559911766,1.2722,3728.1,3728.0,0.53639]
[1754559912273,1.0752,3728.1,3728.0,0.53639]
[1754559912872,0.5909,3728.1,3728.0,0.53639]
[1754559913273,1.7266,3728.4,3728.3,0.53635]
[1754559913672,0.2926,3728.4,3728.3,0.53635]
[1754559913870,0.2926,3728.9,3728.8,0.53628]
[1754559914175,1.01982356,3728.9,3728.8,0.53628]
[1754559914874,1.31812356,3728.9,3728.8,0.53628]
[1754559915273,1.01982356,3728.9,3728.8,0.53628]
[1754559915773,1.31812356,3728.9,3728.8,0.53628]
[1754559916371,2.45382356,3728.9,3728.8,0.53628]
[1754559917275,1.21922356,3728.9,3728.8,0.53628]
[1754559917468,0.72722356,3728.9,3728.8,0.53628]
[1754559917668,1.01982356,3728.9,3728.8,0.53628]
[1754559918369,1.31812356,3728.9,3728.8,0.53768]
[1754559918772,1.01982356,3728.9,3728.8,0.53768]
[1754559919478,1.31812356,3728.9,3728.8,0.53768]
[1754559922075,0.72722356,3728.9,3728.8,0.53768]
[1754559922279,1.01982356,3728.9,3728.8,0.53768]
[1754559922579,1.51752356,3728.9,3728.8,0.53768]
[1754559923078,2.45382356,3728.9,3728.8,0.53628]
[1754559924880,0.72722356,3728.9,3728.8,0.53628]
[1754559925080,0.2926,3728.9,3728.8,0.53628]
[1754559926778,0.5909,3728.9,3728.8,0.53628]
[1754559926974,0.2926,3728.9,3728.8,0.53628]
[1754559927581,0.5909,3728.9,3728.8,0.53628]
[1754559927782,0.2926,3728.9,3728.8,0.53628]
[1754559928180,0.05500261,3729.0,3728.8,0.53628]
[1754559928376,0.2926,3728.9,3728.8,0.53628]
[1754559928572,0.05500261,3729.0,3728.8,0.53628]
[1754559928778,0.34760261,3729.0,3728.8,0.53628]
[1754559928980,0.2926,3728.9,3728.8,0.53858]
[1754559929183,0.2376,3728.9,3728.8,0.53858]
[1754559929377,0.2376,3728.9,3728.8,0.53948]
[1754559929683,0.05500261,3729.0,3728.9,0.1462]
[1754559929684,2.61e-06,3729.0,3728.9,0.1462]
[1754559930077,0.27830261,3729.0,3728.9,0.1462]
[1754559930385,0.47100261,3729.0,3728.9,0.0903]
[1754559930583,0.27830261,3729.0,3728.9,0.1462]
[1754559930881,0.47100261,3729.0,3728.9,0.0903]
[1754559931188,1.68750261,3729.0,3728.9,0.0903]
[1754559931679,1.38020261,3729.0,3728.9,0.5776]
[1754559932277,1.38020261,3729.0,3728.8,0.53628]
[1754559932278,0.2,3729.2,3729.1,0.3979]
[1754559932481,1.6092,3729.2,3729.1,4.145]
[1754559932691,1.1092,3729.2,3729.1,4.1847]
[1754559933577,1.3875,3729.2,3729.1,4.1847]
[1754559933882,1.3873,3729.9,3729.8,0.53613]
[1754559934182,0.964,3729.9,3729.8,0.53613]
[1754559934385,1.64513,3729.8,3729.7,0.53614]
[1754559934581,1.4092,3729.8,3729.7,0.53614]
[1754559936279,1.6875,3729.8,3729.7,0.53614]
[1754559939784,0.9624,3729.2,3729.1,3.94443]
[1754559939988,0.9624,3729.2,3729.1,4.72003]
[1754559939989,1.6875,3729.2,3729.1,4.72003]
[1754559940390,1.6875,3729.2,3729.1,3.74403]
[1754559940693,1.6875,3728.7,3728.6,3.7441]
[1754559940892,1.6875,3728.7,3728.6,0.5363]
[1754559941388,1.2407,3728.4,3728.3,0.53634]
[1754559941587,1.6875,3728.3,3728.2,0.53635]
[1754559942978,1.6875,3728.3,3727.8,3.4985]
[1754559942979,1.6875,3728.3,3728.1,0.53637]
[1754559943180,1.6875,3727.8,3727.7,0.53642]
[1754559943692,1.6875,3727.5,3727.3,0.53648]
[1754559943890,1.6875,3727.4,3727.3,0.53648]
[1754559944191,1.6875,3727.4,3727.3,1.51248]
[1754559944392,1.6875,3727.4,3727.3,1.51338]
[1754559944592,4.5951,3727.8,3727.7,1.51243]
[1754559944796,2.41131266,3728.1,3728.0,1.51239]
[1754559944985,2.41131266,3728.1,3728.0,1.51329]
[1754559944986,1.6875,3728.1,3728.0,1.51329]
[1754559945184,1.109,3728.1,3728.0,1.51329]
[1754559945496,1.6875,3728.1,3728.0,1.51329]
[1754559946097,1.109,3728.1,3728.0,1.51329]
[1754559946501,0.2813,3728.3,3728.2,1.51326]
[1754559946795,1.6875,3728.5,3728.4,0.53633]
[1754559947190,1.6875,3728.3,3728.2,0.53635]
[1754559947695,1.6875,3728.3,3728.2,0.73675]
[1754559947893,0.4695,3728.3,3728.2,1.51235]
[1754559948098,1.6875,3728.3,3728.2,1.51325]
[1754559948397,1.6875,3728.8,3728.5,0.53631]
[1754559948598,1.6875,3728.6,3728.5,0.53631]
[1754559950399,1.6875,3728.6,3728.5,0.73671]
[1754559951702,0.2813,3728.0,3727.9,0.53641]
[1754559951903,1.6875,3728.0,3727.9,1.51241]
[1754559952796,0.6622,3728.0,3727.8,0.53641]
[1754559952999,1.6875,3727.9,3727.8,0.53641]
[1754559954397,0.4695,3727.7,3727.6,0.2883]
[1754559954600,1.6875,3727.3,3727.2,0.53651]
[1754559954798,1.6875,3727.0,3726.9,0.73695]
[1754559954997,0.9405,3727.0,3726.9,1.02525]
[1754559955199,1.3873,3727.0,3726.9,1.22185]
[1754559955392,1.3873,3727.0,3726.9,0.53655]
[1754559955595,1.6875,3727.0,3726.9,0.73695]
[1754559955799,1.6875,3727.0,3726.9,1.02525]
[1754559956000,1.6875,3727.0,3726.9,0.53655]
[1754559956700,1.6875,3727.0,3726.9,0.73695]
[1754559957106,1.6875,3727.0,3726.9,0.2004]
[1754559957397,1.6875,3726.9,3726.8,0.53655]
[1754559957601,1.6875,3726.9,3726.8,1.51255]
[1754559958000,0.2813,3726.4,3726.3,3.74534]
[1754559958201,0.2813,3726.4,3726.3,4.43304]
[1754559958395,0.7281,3726.4,3726.3,4.72134]
[1754559958606,1.6875,3726.7,3726.6,1.51349]
[1754559961899,1.6875,3726.7,3726.6,0.53659]
[1754559962295,1.7041,3726.6,3726.5,0.5366]
[1754559962994,1.00784,3726.3,3726.2,0.2045]
[1754559963201,2.24074,3726.3,3726.1,0.82866]
[1754559963502,1.7041,3726.2,3726.1,0.82866]
[1754559963700,1.7041,3726.2,3726.1,1.03316]
[1754559963909,1.7041,3725.8,3725.7,0.53672]
[1754559964201,1.7041,3725.8,3725.7,1.21852]
[1754559964509,1.7041,3725.8,3725.7,1.50262]
[1754559964999,1.403,3725.8,3725.7,1.50262]
[1754559965903,1.7041,3725.8,3725.7,0.53672]
[1754559966509,1.20872,3725.7,3725.3,3.2078]
[1754559966808,1.7041,3725.6,3725.5,0.53674]
[1754559968803,0.7077,3725.6,3725.5,1.03324]
[1754559969109,40.8,3726.0,3725.8,1.21851]
[1754559969304,40.8,3726.0,3725.9,0.9659]
[1754559969608,1.7041,3725.9,3725.8,1.21851]
[1754559970002,1.403,3725.9,3725.8,1.50261]
[1754559971216,0.2841,3725.9,3725.8,1.50261]
[1754559971803,0.2841,3725.9,3725.8,1.03321]
[1754559972006,1.7041,3725.9,3725.8,1.50261]
[1754559972308,0.2841,3726.1,3726.0,1.50258]
[1754559972909,0.7077,3726.1,3726.0,1.50258]
[1754559973110,0.8948,3726.1,3726.0,1.50258]
[1754559973511,1.0956,3726.1,3726.0,1.50258]
[1754559974517,1.403,3726.1,3726.0,1.50258]
[1754559974710,0.9731,3726.4,3726.3,0.9659]
[1754559975415,1.7041,3726.4,3726.3,0.9659]
[1754559976017,1.7041,3726.4,3726.3,0.6818]
[1754559976806,0.2841,3726.5,3726.4,0.53662]
[1754559977012,3.2078,3726.6,3726.5,0.3898]
[1754559977411,4.3034,3726.6,3726.5,0.9659]
[1754559977611,4.9119,3726.6,3726.5,0.9659]
[1754559980611,4.9119,3726.6,3726.5,0.6818]
[1754559980816,1.7041,3726.5,3726.4,1.03312]
[1754559981910,1.7041,3726.5,3726.4,0.74112]
[1754559982118,1.7041,3726.5,3726.4,0.53662]
[1754559983015,0.82072,3726.4,3726.3,0.53662]
[1754559983221,2.24072,3726.4,3726.3,0.53662]
[1754559983519,2.42845079,3726.4,3726.3,1.50252]
[1754559983714,2.42845079,3726.4,3726.3,1.21842]